[Event "XXII Obert Internacional d'Escacs Sant Marti 2022"]
[Site "Barcelona, Spain"]
[Date "2022.07.17"]
[Round "5.1"]
[White "Pena Gomez, Manuel"]
[Black "Aronyak, Ghosh"]
[Result "1/2-1/2"]
[TimeControl "1.30 fb 30"]
[WhiteElo "2492"]
[BlackElo "2486"]

1. e4 {[%clk 01:30:57]} {[%emt 00:00:02]} c6 {[%clk 01:28:14]} {[%emt
00:02:47]} 2. d4 {[%clk 01:31:10]} {[%emt 00:00:17]} d5 {[%clk 01:28:34]}
{[%emt 00:00:09]} 3. Nd2 {[%clk 01:31:36]} {[%emt 00:00:04]} dxe4 {[%clk
01:28:11]} {[%emt 00:00:53]} 4. Nxe4 {[%clk 01:31:57]} {[%emt 00:00:09]} Nd7
{[%clk 01:26:29]} {[%emt 00:02:13]} 5. Ng5 {[%clk 01:31:32]} {[%emt 00:00:55]}
Ngf6 {[%clk 01:26:10]} {[%emt 00:00:49]} 6. Bd3 {[%clk 01:31:10]} {[%emt
00:00:52]} e6 {[%clk 01:25:20]} {[%emt 00:01:20]} 7. N1f3 {[%clk 01:31:21]}
{[%emt 00:00:19]} Bd6 {[%clk 01:25:36]} {[%emt 00:00:14]} 8. Qe2 {[%clk
01:30:58]} {[%emt 00:00:53]} h6 {[%clk 01:25:56]} {[%emt 00:00:10]} 9. Ne4
{[%clk 01:31:21]} {[%emt 00:00:06]} Nxe4 {[%clk 01:26:21]} {[%emt 00:00:05]} 10.
Qxe4 {[%clk 01:31:46]} {[%emt 00:00:06]} Qc7 {[%clk 01:26:48]} {[%emt
00:00:03]} 11. O-O {[%clk 01:24:17]} {[%emt 00:07:58]} Nf6 {[%clk 01:15:54]}
{[%emt 00:11:25]} 12. Qe2 {[%clk 01:24:38]} {[%emt 00:00:09]} b6 {[%clk
01:14:35]} {[%emt 00:01:49]} 13. a4 {[%clk 01:22:06]} {[%emt 00:03:03]} Bb7
{[%clk 01:07:36]} {[%emt 00:07:28]} 14. a5 {[%emt 00:07:06]} Rd8 {[%clk
01:06:42]} {[%emt 00:01:23]} 15. Bd2 {[%clk 01:06:47]} {[%emt 00:09:14]} O-O
{[%clk 01:04:00]} {[%emt 00:03:12]} 16. b4 {[%clk 01:00:19]} {[%emt 00:06:58]}
Rc8 {[%clk 00:57:51]} {[%emt 00:06:39]} 17. axb6 {[%clk 00:52:02]} {[%emt
00:08:47]} axb6 {[%clk 00:58:16]} {[%emt 00:00:05]} 18. Ba6 {[%clk 00:52:24]}
{[%emt 00:00:09]} b5 {[%clk 00:53:07]} {[%emt 00:05:38]} 19. Bxb7 {[%clk
00:35:38]} {[%emt 00:17:16]} Qxb7 {[%clk 00:53:36]} {[%emt 00:00:02]} 20. Ra3
{[%clk 00:35:35]} {[%emt 00:00:32]} Ra8 {[%clk 00:52:10]} {[%emt 00:01:56]} 21.
Rb3 {[%clk 00:34:50]} {[%emt 00:01:16]} Qb6 {[%clk 00:46:14]} {[%emt 00:06:25]}
22. g4 {[%clk 00:29:45]} {[%emt 00:05:35]} Nd5 {[%clk 00:40:35]} {[%emt
00:06:08]} 23. g5 {[%clk 00:25:12]} {[%emt 00:05:03]} Nf4 {[%clk 00:38:38]}
{[%emt 00:02:27]} 24. Qe4 {[%clk 00:20:22]} {[%emt 00:05:21]} f5 {[%clk
00:35:41]} {[%emt 00:03:27]} 25. Qe1 {[%clk 00:20:51]} {[%emt 00:00:01]} Rae8
{[%clk 00:29:02]} {[%emt 00:07:10]} 26. gxh6 {[%clk 00:20:40]} {[%emt
00:00:41]} gxh6 {[%clk 00:26:09]} {[%emt 00:03:23]} 27. Kh1 {[%clk 00:19:51]}
{[%emt 00:01:18]} Kh7 {[%clk 00:24:42]} {[%emt 00:01:57]} 28. Rg1 {[%clk
00:17:28]} {[%emt 00:02:54]} Rf6 {[%clk 00:20:45]} {[%emt 00:04:26]} 29. Qe3
{[%clk 00:09:34]} {[%emt 00:08:24]} Qb7 {[%clk 00:18:07]} {[%emt 00:03:08]} 30.
Ne5 {[%clk 00:08:09]} {[%emt 00:01:55]} c5+ {[%clk 00:17:30]} {[%emt 00:01:07]}
31. Qf3 {[%clk 00:05:43]} {[%emt 00:02:56]} Qxf3+ {[%clk 00:17:46]} {[%emt
00:00:14]} 32. Nxf3 {[%clk 00:05:57]} {[%emt 00:00:15]} cxb4 {[%clk 00:15:12]}
{[%emt 00:03:04]} 33. Bxf4 {[%clk 00:06:14]} {[%emt 00:00:13]} Bxf4 {[%clk
00:15:39]} {[%emt 00:00:04]} 34. Rxb4 {[%clk 00:06:33]} {[%emt 00:00:12]} Rc8
{[%clk 00:15:13]} {[%emt 00:00:55]} 35. d5 {[%clk 00:04:39]} {[%emt 00:02:25]}
Bd6 {[%clk 00:13:28]} {[%emt 00:02:14]} 36. Rxb5 {[%clk 00:05:04]} {[%emt
00:00:05]} exd5 {[%clk 00:13:49]} {[%emt 00:00:09]} 37. Nd4 {[%emt 00:01:54]}
Ra8 {[%emt 00:00:10]} 1/2-1/2

[Event "XXII Obert Internacional d'Escacs Sant Marti 2022"]
[Site "Barcelona, Spain"]
[Date "2022.07.17"]
[Round "5.2"]
[White "Diermair, Andreas"]
[Black "Asis Gargatagli, Hipolito"]
[Result "1/2-1/2"]
[TimeControl "1.30 fb 30"]
[WhiteElo "2452"]
[BlackElo "2514"]

1. d4 {[%clk 01:30:56]} {[%emt 00:00:03]} Nf6 {[%clk 01:27:16]} {[%emt
00:03:44]} 2. c4 {[%clk 01:31:19]} {[%emt 00:00:07]} g6 {[%clk 01:27:37]}
{[%emt 00:00:09]} 3. Nf3 {[%clk 01:31:04]} {[%emt 00:00:45]} Bg7 {[%clk
01:27:44]} {[%emt 00:00:23]} 4. g3 {[%clk 01:31:20]} {[%emt 00:00:14]} O-O
{[%clk 01:27:29]} {[%emt 00:00:45]} 5. Bg2 {[%clk 01:31:44]} {[%emt 00:00:07]}
c6 {[%clk 01:27:37]} {[%emt 00:00:23]} 6. O-O {[%clk 01:30:37]} {[%emt
00:01:36]} d5 {[%clk 01:28:00]} {[%emt 00:00:07]} 7. b3 {[%clk 01:28:16]}
{[%emt 00:02:51]} dxc4 {[%clk 01:27:25]} {[%emt 00:01:05]} 8. bxc4 {[%clk
01:28:41]} {[%emt 00:00:05]} c5 {[%clk 01:27:50]} {[%emt 00:00:06]} 9. Bb2
{[%clk 01:29:08]} {[%emt 00:00:03]} cxd4 {[%clk 01:27:48]} {[%emt 00:00:33]} 10.
Nxd4 {[%clk 01:29:30]} {[%emt 00:00:08]} Qb6 {[%clk 01:27:54]} {[%emt
00:00:24]} 11. Qc1 {[%clk 01:29:44]} {[%emt 00:00:15]} Bd7 {[%clk 01:27:58]}
{[%emt 00:00:26]} 12. Nd2 {[%clk 01:28:55]} {[%emt 00:01:18]} Nc6 {[%clk
01:27:54]} {[%emt 00:00:35]} 13. e3 {[%clk 01:27:54]} {[%emt 00:01:31]} Rac8
{[%clk 01:21:44]} {[%emt 00:06:41]} 14. Bc3 {[%clk 01:25:24]} {[%emt 00:03:00]}
Qa6 {[%clk 00:57:33]} {[%emt 00:24:41]} 15. Qb2 {[%clk 01:12:30]} {[%emt
00:13:24]} b6 {[%clk 00:41:06]} {[%emt 00:16:58]} 16. Rfd1 {[%clk 01:04:40]}
{[%emt 00:08:19]} Ne5 {[%clk 00:37:09]} {[%emt 00:04:28]} 17. Bf1 {[%clk
01:04:26]} {[%emt 00:00:44]} Ba4 {[%clk 00:14:26]} {[%emt 00:23:12]} 18. Rdc1
{[%clk 00:50:16]} {[%emt 00:14:41]} Ned7 {[%clk 00:08:10]} {[%emt 00:06:46]} 19.
c5 {[%clk 00:46:11]} {[%emt 00:04:34]} Qb7 {[%clk 00:08:34]} {[%emt 00:00:06]}
20. Bg2 {[%clk 00:44:17]} {[%emt 00:02:24]} Qb8 {[%clk 00:07:46]} {[%emt
00:01:18]} 21. cxb6 {[%clk 00:41:21]} {[%emt 00:03:27]} Nxb6 {[%clk 00:06:55]}
{[%emt 00:01:21]} 22. Qa3 {[%clk 00:39:48]} {[%emt 00:02:02]} Nfd5 {[%clk
00:04:40]} {[%emt 00:02:45]} 23. Ba5 {[%clk 00:38:23]} {[%emt 00:01:55]}
1/2-1/2

[Event "XXII Obert Internacional d'Escacs Sant Marti 2022"]
[Site "Barcelona, Spain"]
[Date "2022.07.17"]
[Round "5.3"]
[White "Roshka, Yevgeniy"]
[Black "Kovchan, Alexander"]
[Result "1/2-1/2"]
[TimeControl "1.30 fb 30"]
[WhiteElo "2497"]
[BlackElo "2468"]

1. d4 {[%clk 01:21:42]} {[%emt 00:09:12]} Nf6 {[%clk 01:30:56]} {[%emt
00:00:08]} 2. c4 {[%clk 01:22:01]} {[%emt 00:00:11]} g6 {[%clk 01:31:19]}
{[%emt 00:00:08]} 3. h4 {[%clk 01:22:25]} {[%emt 00:00:05]} Bg7 {[%clk
01:31:15]} {[%emt 00:00:34]} 4. Nc3 {[%clk 01:22:50]} {[%emt 00:00:06]} c5
{[%clk 01:31:29]} {[%emt 00:00:15]} 5. d5 {[%clk 01:23:16]} {[%emt 00:00:04]}
d6 {[%clk 01:31:49]} {[%emt 00:00:10]} 6. e4 {[%clk 01:23:45]} {[%emt
00:00:02]} e6 {[%clk 01:32:03]} {[%emt 00:00:16]} 7. Be2 {[%clk 01:24:10]}
{[%emt 00:00:05]} exd5 {[%clk 01:32:14]} {[%emt 00:00:18]} 8. exd5 {[%clk
01:24:38]} {[%emt 00:00:02]} Nbd7 {[%clk 01:32:30]} {[%emt 00:00:13]} 9. Nf3
{[%clk 01:24:30]} {[%emt 00:00:38]} Ng4 {[%clk 01:31:42]} {[%emt 00:01:18]} 10.
h5 {[%clk 01:23:48]} {[%emt 00:01:13]} O-O {[%clk 01:31:47]} {[%emt 00:00:25]}
11. Ng5 {[%clk 01:08:55]} {[%emt 00:15:23]} Re8 {[%clk 01:31:53]} {[%emt
00:00:24]} 12. Kf1 {[%clk 01:08:46]} {[%emt 00:00:38]} Ndf6 {[%clk 01:30:44]}
{[%emt 00:01:39]} 13. hxg6 {[%clk 01:05:56]} {[%emt 00:03:21]} hxg6 {[%clk
01:29:32]} {[%emt 00:01:41]} 14. g3 {[%clk 01:01:53]} {[%emt 00:04:33]} Bf5
{[%clk 01:26:32]} {[%emt 00:03:30]} 15. Rh4 {[%clk 01:01:39]} {[%emt 00:00:44]}
Qd7 {[%clk 01:23:46]} {[%emt 00:03:17]} 16. Kg2 {[%clk 01:01:00]} {[%emt
00:01:09]} Re7 {[%clk 01:17:42]} {[%emt 00:06:34]} 17. Bf4 {[%clk 00:57:54]}
{[%emt 00:03:36]} Rae8 {[%clk 01:16:13]} {[%emt 00:01:59]} 18. a4 {[%clk
00:57:53]} {[%emt 00:00:31]} a6 {[%clk 01:12:53]} {[%emt 00:03:50]} 19. a5
{[%clk 00:58:13]} {[%emt 00:00:10]} Ne5 {[%clk 01:09:59]} {[%emt 00:03:23]} 20.
Ra3 {[%clk 00:54:48]} {[%emt 00:03:56]} Qc7 {[%clk 01:07:43]} {[%emt 00:02:46]}
21. g4 {[%clk 00:46:55]} {[%emt 00:08:23]} Bc8 {[%clk 01:07:09]} {[%emt
00:01:04]} 22. f3 {[%clk 00:46:17]} {[%emt 00:01:09]} b6 {[%clk 00:54:49]}
{[%emt 00:12:49]} 23. Qh1 {[%clk 00:24:56]} {[%emt 00:21:50]} Nexg4 {[%clk
00:48:50]} {[%emt 00:06:29]} 24. Nce4 {[%clk 00:24:05]} {[%emt 00:01:22]} Bf5
{[%clk 00:44:41]} {[%emt 00:04:39]} 25. Kf1 {[%clk 00:18:20]} {[%emt 00:06:15]}
Nh5 {[%clk 00:26:54]} {[%emt 00:18:16]} 26. Rxh5 {[%clk 00:16:52]} {[%emt
00:01:58]} gxh5 {[%clk 00:27:15]} {[%emt 00:00:09]} 27. Bxd6 {[%clk 00:17:13]}
{[%emt 00:00:10]} Rxe4 {[%clk 00:21:34]} {[%emt 00:06:11]} 28. Bxc7 {[%clk
00:17:41]} {[%emt 00:00:02]} Rxe2 {[%clk 00:21:56]} {[%emt 00:00:07]} 29. Ne4
{[%clk 00:18:02]} {[%emt 00:00:09]} Rxb2 {[%clk 00:18:45]} {[%emt 00:03:41]} 30.
Qxh5 {[%clk 00:18:24]} {[%emt 00:00:08]} Bxe4 {[%clk 00:16:21]} {[%emt
00:02:54]} 31. Qxg4 {[%clk 00:18:05]} {[%emt 00:00:50]} Bg6 {[%clk 00:16:01]}
{[%emt 00:00:49]} 32. f4 {[%clk 00:07:13]} {[%emt 00:11:22]} Rb1+ {[%clk
00:13:22]} {[%emt 00:03:09]} 33. Kg2 {[%clk 00:07:42]} {[%emt 00:00:01]} Be4+
{[%clk 00:13:05]} {[%emt 00:00:47]} 34. Kf2 {[%clk 00:08:06]} {[%emt 00:00:06]}
Rb2+ {[%clk 00:13:23]} {[%emt 00:00:13]} 35. Kg1 {[%clk 00:07:25]} {[%emt
00:01:11]} Rb1+ {[%clk 00:09:46]} {[%emt 00:04:07]} 36. Kf2 {[%clk 00:07:50]}
{[%emt 00:00:04]} Rb2+ {[%clk 00:10:13]} {[%emt 00:00:03]} 37. Kf1 {[%clk
00:07:49]} {[%emt 00:00:30]} 1/2-1/2

[Event "XXII Obert Internacional d'Escacs Sant Marti 2022"]
[Site "Barcelona, Spain"]
[Date "2022.07.17"]
[Round "5.4"]
[White "Sauravh, Khherdekar"]
[Black "Berdayes Ason, Dylan Isidro"]
[Result "0-1"]
[TimeControl "1.30 fb 30"]
[WhiteElo "2219"]
[BlackElo "2480"]

1. d4 {[%clk 01:27:28]} {[%emt 00:03:32]} Nf6 {[%clk 01:30:57]} {[%emt
00:00:03]} 2. Nf3 {[%clk 01:27:51]} {[%emt 00:00:07]} d5 {[%clk 01:31:24]}
{[%emt 00:00:04]} 3. c4 {[%clk 01:27:32]} {[%emt 00:00:49]} e6 {[%clk
01:31:51]} {[%emt 00:00:03]} 4. g3 {[%clk 01:27:51]} {[%emt 00:00:11]} Bb4+
{[%clk 01:31:42]} {[%emt 00:00:39]} 5. Bd2 {[%clk 01:28:12]} {[%emt 00:00:08]}
Be7 {[%clk 01:32:09]} {[%emt 00:00:03]} 6. Bg2 {[%clk 01:28:28]} {[%emt
00:00:14]} O-O {[%clk 01:32:36]} {[%emt 00:00:04]} 7. O-O {[%clk 01:28:43]}
{[%emt 00:00:15]} Nbd7 {[%clk 01:33:03]} {[%emt 00:00:03]} 8. Qc2 {[%clk
01:28:20]} {[%emt 00:00:52]} Ne4 {[%clk 01:33:31]} {[%emt 00:00:03]} 9. Nc3
{[%clk 01:27:38]} {[%emt 00:01:12]} Nxd2 {[%clk 01:33:57]} {[%emt 00:00:04]} 10.
Nxd2 {[%clk 01:27:40]} {[%emt 00:00:28]} c6 {[%clk 01:34:24]} {[%emt 00:00:02]}
11. e4 {[%clk 01:27:45]} {[%emt 00:00:26]} dxe4 {[%clk 01:34:52]} {[%emt
00:00:03]} 12. Ndxe4 {[%clk 01:28:03]} {[%emt 00:00:11]} f5 {[%clk 01:34:32]}
{[%emt 00:00:50]} 13. Nd2 {[%clk 01:28:05]} {[%emt 00:00:27]} e5 {[%clk
01:34:58]} {[%emt 00:00:04]} 14. dxe5 {[%clk 01:25:54]} {[%emt 00:02:41]} Nxe5
{[%clk 01:35:19]} {[%emt 00:00:10]} 15. Rfe1 {[%clk 01:24:46]} {[%emt
00:01:37]} Qc7 {[%clk 01:31:17]} {[%emt 00:04:33]} 16. Nf3 {[%clk 01:23:58]}
{[%emt 00:01:17]} Nxf3+ {[%clk 01:24:03]} {[%emt 00:07:44]} 17. Bxf3 {[%clk
01:24:21]} {[%emt 00:00:07]} Bf6 {[%clk 01:24:31]} {[%emt 00:00:02]} 18. b3
{[%clk 01:20:53]} {[%emt 00:03:58]} Qa5 {[%clk 01:21:38]} {[%emt 00:03:23]} 19.
Rac1 {[%clk 01:21:12]} {[%emt 00:00:10]} Bd7 {[%clk 01:21:57]} {[%emt
00:00:12]} 20. Ne2 {[%clk 01:20:45]} {[%emt 00:00:57]} Rae8 {[%clk 01:17:51]}
{[%emt 00:04:36]} 21. Red1 {[%clk 01:20:41]} {[%emt 00:00:33]} Bc8 {[%clk
01:16:46]} {[%emt 00:01:36]} 22. Qd2 {[%clk 01:20:00]} {[%emt 00:01:09]} Qc7
{[%clk 01:16:07]} {[%emt 00:01:10]} 23. Qd6 {[%clk 01:18:16]} {[%emt 00:02:15]}
Qf7 {[%clk 01:15:24]} {[%emt 00:01:13]} 24. Qa3 {[%clk 01:17:58]} {[%emt
00:00:48]} a6 {[%clk 01:14:28]} {[%emt 00:01:26]} 25. Nf4 {[%clk 01:12:32]}
{[%emt 00:05:55]} Be5 {[%clk 01:12:31]} {[%emt 00:02:28]} 26. Nd3 {[%clk
01:09:56]} {[%emt 00:03:05]} Bc7 {[%clk 01:12:14]} {[%emt 00:00:48]} 27. Re1
{[%clk 01:08:42]} {[%emt 00:01:43]} f4 {[%clk 01:12:06]} {[%emt 00:00:39]} 28.
Rxe8 {[%clk 01:08:48]} {[%emt 00:00:24]} Rxe8 {[%clk 01:12:20]} {[%emt
00:00:15]} 29. Re1 {[%clk 01:08:43]} {[%emt 00:00:35]} fxg3 {[%clk 00:51:47]}
{[%emt 00:21:03]} 30. Rxe8+ {[%clk 01:09:03]} {[%emt 00:00:10]} Qxe8 {[%clk
00:52:16]} {[%emt 00:00:02]} 31. hxg3 {[%clk 01:07:54]} {[%emt 00:01:38]} Bf5
{[%clk 00:52:44]} {[%emt 00:00:02]} 32. Nf4 {[%emt 00:04:46]} Qe1+ {[%emt
00:01:08]} 33. Kg2 {[%emt 00:00:44]} Bb6 {[%emt 00:00:15]} 34. Qb2 {[%emt
00:02:31]} Kf8 {[%emt 00:02:34]} 35. Nh5 {[%emt 00:02:49]} Qe7 {[%emt
00:00:37]} 36. Qd2 {[%emt 00:00:42]} Qc5 {[%emt 00:02:03]} 37. g4 {[%emt
00:02:01]} Be6 {[%emt 00:03:45]} 38. Qf4+ {[%emt 00:01:02]} Ke7 {[%emt
00:00:02]} 39. Be4 {[%emt 00:01:54]} Qd4 {[%emt 00:00:10]} 40. Bxh7 {[%emt
00:09:12]} Bxg4 {[%emt 00:00:03]} 41. Qxd4 {[%emt 00:00:49]} Bxd4 {[%emt
00:00:03]} 42. Nf4 {[%emt 00:00:30]} Kd6 {[%emt 00:03:43]} 43. f3 {[%emt
00:00:20]} Bd7 {[%emt 00:00:14]} 44. Kf1 {[%emt 00:00:47]} Ke5 {[%emt
00:04:59]} 45. Nd3+ {[%emt 00:00:36]} Kf6 {[%emt 00:00:02]} 46. Be4 {[%emt
00:00:29]} Kg5 {[%emt 00:00:02]} 47. Ke2 {[%emt 00:00:31]} a5 {[%emt 00:02:39]}
48. Nc1 {[%emt 00:03:01]} Kf4 {[%emt 00:01:49]} 49. Kd3 {[%emt 00:00:29]} Bb2
{[%emt 00:00:24]} 50. Ne2+ {[%emt 00:00:06]} Ke5 {[%emt 00:00:02]} 51. a4
{[%emt 00:02:04]} g5 {[%emt 00:01:16]} 52. Kc2 {[%emt 00:01:26]} Ba3 {[%emt
00:03:38]} 53. Bg6 {[%emt 00:00:18]} Bh3 {[%emt 00:01:26]} 54. Kd3 {[%emt
00:02:06]} Bf1 {[%emt 00:00:25]} 55. Kd2 {[%emt 00:00:42]} Bb4+ {[%emt
00:00:06]} 56. Ke3 {[%emt 00:00:28]} Bc5+ {[%emt 00:00:50]} 57. Kd2 {[%emt
00:00:39]} Bg2 {[%emt 00:07:25]} 58. Bh5 {[%emt 00:00:14]} Bh3 {[%emt
00:00:42]} 59. Bg6 {[%emt 00:00:34]} Kf6 {[%emt 00:01:37]} 60. Be4 {[%emt
00:00:27]} Ke5 {[%emt 00:01:51]} 61. Bg6 {[%emt 00:00:06]} Bf2 {[%emt
00:00:13]} 62. Kd3 {[%emt 00:01:25]} Bf1 {[%emt 00:00:37]} 63. Bh5 {[%emt
00:00:50]} Bh3 {[%emt 00:00:49]} 64. Bg6 {[%emt 00:00:24]} Bb6 {[%emt
00:03:07]} 65. Be4 {[%emt 00:00:27]} Bf1 {[%emt 00:02:26]} 66. Bg6 {[%emt
00:01:10]} Kd6 {[%emt 00:00:02]} 67. Kd2 {[%emt 00:02:40]} Bg2 {[%emt
00:00:52]} 68. Bh5 {[%emt 00:00:41]} Kc5 {[%emt 00:00:49]} 69. Kc2 {[%emt
00:01:12]} Bc7 {[%emt 00:01:20]} 70. Nc3 {[%emt 00:01:45]} Kd4 {[%emt
00:00:54]} 71. Nd1 {[%emt 00:03:13]} Bf1 {[%emt 00:01:34]} 72. Bg4 {[%emt
00:02:28]} Bd3+ {[%emt 00:00:29]} 73. Kb2 {[%emt 00:00:15]} Bf4 {[%emt
00:01:05]} 74. Nf2 {[%emt 00:00:42]} Be2 {[%emt 00:01:19]} 75. Kc2 {[%emt
00:00:19]} Bf1 {[%emt 00:03:16]} 76. Nd1 {[%emt 00:01:07]} Bd3+ {[%emt
00:00:06]} 77. Kb2 {[%emt 00:00:06]} Bg6 {[%emt 00:01:14]} 78. Nf2 {[%emt
00:02:45]} Ke3 {[%emt 00:00:18]} 79. Ne4 {[%emt 00:01:33]} b6 {[%emt 00:08:19]}
80. Kc2 {[%emt 00:01:35]} Kd4 {[%emt 00:00:03]} 81. Bd7 {[%emt 00:00:44]} Bh5
{[%emt 00:00:58]} 0-1

[Event "XXII Obert Internacional d'Escacs Sant Marti 2022"]
[Site "Barcelona, Spain"]
[Date "2022.07.17"]
[Round "5.5"]
[White "Tanaka, Taira Tyler"]
[Black "Narciso Dublan, Marc"]
[Result "1/2-1/2"]
[TimeControl "1.30 fb 30"]
[WhiteElo "2242"]
[BlackElo "2461"]

1. e4 {[%clk 01:30:43]} {[%emt 00:00:16]} e6 {[%clk 01:29:53]} {[%emt
00:01:06]} 2. d4 {[%clk 01:31:00]} {[%emt 00:00:13]} d5 {[%clk 01:30:18]}
{[%emt 00:00:05]} 3. Nd2 {[%clk 01:31:24]} {[%emt 00:00:06]} Nf6 {[%clk
01:30:32]} {[%emt 00:00:17]} 4. e5 {[%clk 01:31:47]} {[%emt 00:00:08]} Nfd7
{[%clk 01:30:52]} {[%emt 00:00:08]} 5. Bd3 {[%clk 01:31:57]} {[%emt 00:00:21]}
c5 {[%clk 01:31:08]} {[%emt 00:00:14]} 6. c3 {[%clk 01:32:10]} {[%emt
00:00:17]} b6 {[%clk 01:31:11]} {[%emt 00:00:27]} 7. Ne2 {[%clk 01:26:24]}
{[%emt 00:06:16]} Ba6 {[%clk 01:31:31]} {[%emt 00:00:10]} 8. Bxa6 {[%clk
01:26:29]} {[%emt 00:00:25]} Nxa6 {[%clk 01:31:56]} {[%emt 00:00:04]} 9. O-O
{[%clk 01:24:43]} {[%emt 00:02:17]} Nc7 {[%clk 01:30:23]} {[%emt 00:02:02]} 10.
f4 {[%clk 01:24:24]} {[%emt 00:00:50]} Be7 {[%clk 01:26:47]} {[%emt 00:04:06]}
11. Nf3 {[%clk 01:12:26]} {[%emt 00:12:28]} h5 {[%clk 01:16:31]} {[%emt
00:10:46]} 12. Be3 {[%clk 01:04:07]} {[%emt 00:08:49]} g6 {[%clk 01:15:39]}
{[%emt 00:01:22]} 13. Ng5 {[%clk 00:57:50]} {[%emt 00:06:48]} c4 {[%clk
01:13:09]} {[%emt 00:03:00]} 14. g4 {[%clk 00:49:01]} {[%emt 00:09:18]} hxg4
{[%clk 01:11:10]} {[%emt 00:02:29]} 15. Ng3 {[%clk 00:48:24]} {[%emt 00:01:07]}
Rh4 {[%clk 00:58:09]} {[%emt 00:13:31]} 16. Qc2 {[%clk 00:40:41]} {[%emt
00:08:13]} Nf8 {[%clk 00:53:05]} {[%emt 00:05:33]} 17. Qf2 {[%clk 00:39:40]}
{[%emt 00:01:31]} Nh7 {[%clk 00:40:52]} {[%emt 00:12:43]} 18. Ne2 {[%clk
00:28:44]} {[%emt 00:11:26]} Rh5 {[%clk 00:36:46]} {[%emt 00:04:36]} 19. Ng3
{[%clk 00:28:37]} {[%emt 00:00:38]} Rh4 {[%clk 00:31:46]} {[%emt 00:05:30]} 20.
Ne2 {[%clk 00:28:56]} {[%emt 00:00:11]} Rh5 {[%clk 00:23:38]} {[%emt 00:08:37]}
21. Ng3 {[%clk 00:28:59]} {[%emt 00:00:27]} Rh4 {[%clk 00:24:03]} {[%emt
00:00:06]} 1/2-1/2

[Event "XXII Obert Internacional d'Escacs Sant Marti 2022"]
[Site "Barcelona, Spain"]
[Date "2022.07.17"]
[Round "5.6"]
[White "Anustoop, Biswas"]
[Black "Valenzuela Gomez, Fernando"]
[Result "1/2-1/2"]
[TimeControl "1.30 fb 30"]
[WhiteElo "2175"]
[BlackElo "2373"]

1. e4 {[%clk 01:30:57]} {[%emt 00:00:01]} c5 {[%clk 01:24:21]} {[%emt
00:06:40]} 2. Nf3 {[%clk 01:31:13]} {[%emt 00:00:14]} d6 {[%clk 01:19:52]}
{[%emt 00:05:00]} 3. d4 {[%clk 01:31:39]} {[%emt 00:00:04]} cxd4 {[%clk
01:20:15]} {[%emt 00:00:07]} 4. Nxd4 {[%clk 01:31:30]} {[%emt 00:00:38]} Nf6
{[%clk 01:20:32]} {[%emt 00:00:13]} 5. Nc3 {[%clk 01:31:47]} {[%emt 00:00:13]}
a6 {[%clk 01:17:03]} {[%emt 00:04:00]} 6. Bg5 {[%clk 01:31:29]} {[%emt
00:00:47]} Nbd7 {[%clk 01:17:30]} {[%emt 00:00:04]} 7. Bc4 {[%clk 01:31:39]}
{[%emt 00:00:20]} Qb6 {[%clk 01:17:51]} {[%emt 00:00:09]} 8. Bb3 {[%clk
01:31:20]} {[%emt 00:00:48]} e6 {[%clk 01:18:00]} {[%emt 00:00:21]} 9. Bxf6
{[%clk 01:31:47]} {[%emt 00:00:04]} Nxf6 {[%clk 01:18:23]} {[%emt 00:00:07]} 10.
Qd2 {[%clk 01:31:48]} {[%emt 00:00:28]} Nd7 {[%clk 01:18:52]} {[%emt 00:00:01]}
11. O-O-O {[%clk 01:30:49]} {[%emt 00:01:29]} Nc5 {[%clk 01:19:20]} {[%emt
00:00:03]} 12. f4 {[%clk 01:27:00]} {[%emt 00:04:18]} Bd7 {[%clk 01:19:44]}
{[%emt 00:00:05]} 13. f5 {[%clk 01:17:31]} {[%emt 00:09:59]} O-O-O {[%clk
01:16:23]} {[%emt 00:03:52]} 14. Kb1 {[%clk 01:16:34]} {[%emt 00:01:27]} g6
{[%clk 01:16:41]} {[%emt 00:00:12]} 15. Qg5 {[%clk 01:12:21]} {[%emt 00:04:41]}
Bg7 {[%clk 01:16:51]} {[%emt 00:00:22]} 16. f6 {[%clk 00:59:52]} {[%emt
00:12:59]} h6 {[%clk 01:16:53]} {[%emt 00:00:29]} 17. Qh4 {[%clk 00:59:52]}
{[%emt 00:00:28]} g5 {[%clk 01:17:07]} {[%emt 00:00:17]} 18. Qf2 {[%clk
01:00:12]} {[%emt 00:00:09]} Bf8 {[%clk 01:17:35]} {[%emt 00:00:03]} 19. Qg3
{[%clk 00:53:11]} {[%emt 00:07:30]} Rg8 {[%clk 01:00:49]} {[%emt 00:17:16]} 20.
Rhf1 {[%clk 00:37:00]} {[%emt 00:16:41]} Rg6 {[%clk 00:59:19]} {[%emt
00:02:01]} 21. Bc4 {[%clk 00:36:13]} {[%emt 00:01:17]} Be8 {[%clk 00:48:26]}
{[%emt 00:11:24]} 22. Be2 {[%clk 00:17:04]} {[%emt 00:19:38]} Nd7 {[%clk
00:35:02]} {[%emt 00:13:54]} 23. Bg4 {[%clk 00:16:39]} {[%emt 00:00:53]} Kb8
{[%clk 00:16:55]} {[%emt 00:18:38]} 24. Bxe6 {[%clk 00:16:20]} {[%emt
00:00:50]} fxe6 {[%clk 00:17:16]} {[%emt 00:00:08]} 25. Nxe6 {[%clk 00:16:27]}
{[%emt 00:00:23]} Rxf6 {[%clk 00:16:55]} {[%emt 00:00:51]} 26. Nd5 {[%clk
00:04:45]} {[%emt 00:12:12]} Rxf1 {[%clk 00:16:56]} 27. Rxf1 {[%clk 00:05:15]}
Qb5 {[%clk 00:16:54]} {[%emt 00:00:33]} 28. Qf2 {[%clk 00:04:59]} {[%emt
00:00:46]} Rc8 {[%clk 00:03:54]} {[%emt 00:13:30]} 29. a4 {[%clk 00:05:27]}
{[%emt 00:00:01]} Qxa4 {[%clk 00:03:57]} {[%emt 00:00:27]} 30. Nxf8 {[%clk
00:05:55]} {[%emt 00:00:02]} Ne5 {[%clk 00:01:27]} {[%emt 00:03:00]} 31. Nb6
{[%clk 00:06:11]} {[%emt 00:00:15]} Qb5 {[%clk 00:01:43]} {[%emt 00:00:14]} 32.
Nxc8 {[%clk 00:05:21]} {[%emt 00:01:20]} Nc4 {[%clk 00:02:08]} {[%emt
00:00:04]} 33. b3 {[%clk 00:00:56]} {[%emt 00:04:55]} Nd2+ {[%clk 00:02:33]}
{[%emt 00:00:05]} 34. Qxd2 {[%clk 00:01:24]} {[%emt 00:00:02]} Qxf1+ {[%clk
00:02:54]} {[%emt 00:00:08]} 35. Ka2 {[%clk 00:01:37]} {[%emt 00:00:18]} Qxf8
{[%clk 00:02:45]} {[%emt 00:00:39]} 36. Qxd6+ {[%clk 00:02:06]} {[%emt
00:00:02]} Qxd6 {[%clk 00:03:04]} {[%emt 00:00:10]} 37. Nxd6 {[%clk 00:02:35]}
{[%emt 00:00:02]} Bc6 {[%clk 00:03:18]} {[%emt 00:00:16]} 38. g4 {[%clk
00:00:44]} {[%emt 00:02:20]} Kc7 {[%clk 00:03:29]} {[%emt 00:00:19]} 39. e5
{[%clk 00:00:35]} {[%emt 00:00:39]} Kd7 {[%clk 00:02:41]} {[%emt 00:01:18]} 40.
Nf5 {[%clk 00:00:33]} {[%emt 00:00:32]} Ke6 {[%clk 00:02:38]} {[%emt 00:00:33]}
41. Nxh6 {[%clk 00:00:49]} {[%emt 00:00:14]} Kxe5 {[%clk 00:03:04]} {[%emt
00:00:04]} 42. Ka3 {[%clk 00:00:37]} {[%emt 00:00:42]} Kf4 {[%clk 00:03:15]}
{[%emt 00:00:19]} 43. Kb4 {[%clk 00:01:06]} 1/2-1/2